bitfinex/quotes_BTCUSD_20240627
["timestamp","ask_amount","ask_price","bid_price","bid_amount"]
[1719518493412,0.1,61551.0,61547.0,0.00039645]
[1719518493761,0.1,61551.0,61547.0,0.00035347]
[1719518494239,0.1,61551.0,61544.0,0.08130346]
[1719518494240,0.001,61546.0,61545.0,0.00035347]
[1719518494593,0.1,61551.0,61545.0,0.00035347]
[1719518494934,0.1,61551.0,61544.0,0.08130346]
[1719518495352,0.106,61551.0,61545.0,0.001]
[1719518495742,0.1,61551.0,61544.0,0.08130346]
[1719518496164,0.106,61551.0,61544.0,0.08230346]
[1719518496306,0.106,61551.0,61545.0,0.00035347]
[1719518496502,0.114,61551.0,61545.0,0.00035347]
[1719518496937,0.106,61551.0,61545.0,0.00035347]
[1719518497334,0.114,61551.0,61545.0,0.00035347]
[1719518497536,0.106,61551.0,61545.0,0.00035347]
[1719518497887,0.114,61551.0,61545.0,0.00035347]
[1719518498033,0.108,61551.0,61545.0,0.00035347]
[1719518498240,0.108,61551.0,61545.0,0.00127747]
[1719518498449,0.236,61546.0,61545.0,0.00227747]
[1719518498672,0.49833898,61546.0,61532.0,0.0768]
[1719518498824,0.236,61534.0,61532.0,0.0768]
[1719518499081,0.1,61533.0,61532.0,0.0768]
[1719518499251,0.1,61533.0,61532.0,0.15810346]
[1719518501114,0.101,61533.0,61532.0,0.15810346]
[1719518501314,0.1,61533.0,61532.0,0.15810346]
[1719518501670,0.101,61533.0,61532.0,0.15810346]
[1719518502113,0.102,61533.0,61532.0,0.16710346]
[1719518502676,0.102,61533.0,61526.0,0.000924]
[1719518502678,0.01,61531.0,61526.0,0.000924]
[1719518502893,0.29813898,61533.0,61526.0,0.000924]
[1719518502894,0.236,61527.0,61526.0,0.000924]
[1719518503066,0.336,61527.0,61526.0,0.000924]
[1719518504328,1.192791,61527.0,61526.0,0.000924]
[1719518505237,1.206791,61527.0,61526.0,0.000924]
[1719518505855,1.24232078,61527.0,61526.0,0.000924]
[1719518506054,1.192791,61527.0,61526.0,0.000924]
[1719518506477,1.220791,61527.0,61526.0,0.000924]
[1719518507914,0.01,61523.0,61516.0,0.00924]
[1719518508117,0.246,61521.0,61516.0,0.00924]
[1719518508319,0.346,61521.0,61516.0,0.00924]
[1719518508541,0.336,61521.0,61516.0,0.00924]
[1719518508948,0.346,61521.0,61516.0,0.00924]
[1719518509152,2.519412,61521.0,61516.0,0.00924]
[1719518509354,2.509412,61521.0,61516.0,0.00924]
[1719518509587,0.67067269,61521.0,61516.0,0.00924]
[1719518509755,0.67067269,61521.0,61513.0,0.00924]
[1719518509756,0.01,61516.0,61513.0,0.00924]
[1719518509998,0.246,61514.0,61513.0,0.00924]
[1719518510220,0.01,61512.0,61509.0,0.00924]
[1719518510838,0.01,61512.0,61500.0,0.000201]
[1719518510839,0.61,61505.0,61500.0,0.000201]
[1719518510994,0.21,61501.0,61500.0,0.000201]
[1719518511214,0.21,61501.0,61470.0,0.00924]
[1719518511215,0.01,61484.0,61470.0,0.00924]
[1719518511412,0.22,61484.0,61470.0,0.00924]
[1719518511672,0.236,61471.0,61470.0,0.00924]
[1719518511886,0.3596,61471.0,61470.0,0.00924]
[1719518512067,0.336,61471.0,61470.0,0.00924]
[1719518512517,0.6629487,61471.0,61470.0,0.00924]
[1719518512926,0.6513897,61471.0,61470.0,0.00924]
[1719518513274,0.81372868,61471.0,61470.0,0.00924]
[1719518513479,0.6603897,61471.0,61470.0,0.00924]
[1719518513681,0.76102867,61471.0,61470.0,0.00924]
[1719518513888,0.75002867,61471.0,61470.0,0.00924]
[1719518514196,0.75002867,61471.0,61463.0,0.04798]
[1719518514371,0.1,61470.0,61463.0,0.04798]
[1719518514586,0.236,61469.0,61468.0,0.08130346]
[1719518514902,0.236,61469.0,61464.0,0.74364244]
[1719518515230,0.1,61468.0,61464.0,0.5]
[1719518515979,0.1,61468.0,61465.0,0.24364244]
[1719518515980,0.236,61466.0,61465.0,0.24364244]
[1719518516378,0.236,61466.0,61465.0,0.16233898]
[1719518516379,0.336,61466.0,61465.0,0.16233898]
[1719518516580,0.36986258,61466.0,61465.0,0.16233898]
[1719518517338,0.33600001,61466.0,61465.0,0.16233898]
[1719518517835,0.33762579,61466.0,61465.0,0.16233898]
[1719518518081,0.33762579,61466.0,61465.0,0.16433898]
[1719518518286,0.33762578,61466.0,61465.0,0.16433898]
[1719518518489,0.33762578,61466.0,61465.0,0.16533898]
[1719518518862,0.33762578,61466.0,61465.0,0.002]
[1719518519621,0.33762578,61466.0,61465.0,0.005]
[1719518520574,0.10162578,61466.0,61465.0,0.16233898]
[1719518521087,0.10162578,61466.0,61465.0,0.18233898]
[1719518521287,0.10162578,61466.0,61465.0,0.36153898]
[1719518521487,0.10162578,61466.0,61465.0,0.36253898]
[1719518521893,0.10162578,61466.0,61465.0,0.36353898]
[1719518522147,0.00162578,61466.0,61465.0,0.34353898]
[1719518522550,0.00162578,61466.0,61465.0,0.42384244]
[1719518522929,0.00162578,61466.0,61465.0,0.42684244]
[1719518525308,0.00162578,61466.0,61465.0,0.44684244]
[1719518525525,0.00162578,61466.0,61465.0,0.42684244]
[1719518527536,0.1,61465.0,61462.0,0.16233898]
[1719518528081,0.10162578,61465.0,61462.0,0.16233898]
[1719518529518,0.10162578,61465.0,61462.0,0.17043898]
[1719518530329,0.10162578,61465.0,61462.0,0.17143898]
[1719518530585,0.10162578,61465.0,61462.0,0.17243898]
[1719518531497,0.1,61464.0,61462.0,0.17243898]
[1719518531709,0.00162578,61465.0,61462.0,0.17243898]
[1719518531834,0.00162578,61465.0,61464.0,0.55733898]
[1719518532032,0.1,61470.0,61469.0,0.895]
[1719518532258,1e-08,61471.0,61470.0,0.395]
[1719518532475,0.1,61491.0,61480.0,0.5]
[1719518532684,0.48782074,61487.0,61481.0,0.55399657]
[1719518532884,0.355041,61491.0,61482.0,0.13535413]
[1719518533038,0.1,61491.0,61488.0,0.08130346]
[1719518533244,0.1,61491.0,61489.0,0.16233898]
[1719518533604,0.065184,61512.0,61492.0,0.5]
[1719518533761,0.236,61504.0,61493.0,0.16233898]
[1719518533963,0.236,61504.0,61494.0,0.13528973]
[1719518534305,0.120308,61503.0,61495.0,0.29762871]
[1719518534536,0.120308,61503.0,61496.0,0.13528973]
[1719518534743,0.2,61521.0,61498.0,0.08130346]
[1719518534887,0.065175,61522.0,61501.0,0.5]
[1719518534888,0.014,61512.0,61501.0,0.5]
[1719518535099,0.014,61512.0,61502.0,0.29761338]
[1719518535301,0.014,61512.0,61503.0,0.1352744]
[1719518535513,0.014,61512.0,61504.0,0.29760009]
[1719518535677,0.014,61512.0,61504.0,0.16233898]
[1719518536082,0.028,61512.0,61505.0,0.13526052]
[1719518536309,0.028,61512.0,61506.0,0.4667995]
[1719518536504,0.028,61512.0,61507.0,0.13526052]
[1719518536708,0.1,61519.0,61508.0,0.2975995]
[1719518536936,0.006,61512.0,61508.0,0.66233898]
[1719518537338,0.006,61512.0,61506.0,0.1692]
[1719518537561,0.236,61509.0,61506.0,0.0947]
[1719518537768,0.236,61509.0,61507.0,0.13525823]
[1719518537898,0.236,61509.0,61507.0,0.001]
[1719518538257,0.1,61508.0,61506.0,0.0947]
[1719518538606,0.1,61513.0,61506.0,0.0947]
[1719518538806,0.007,61512.0,61508.0,0.001]
[1719518539029,0.007,61512.0,61509.0,0.29759551]
[1719518539233,0.007,61512.0,61510.0,0.13525132]
[1719518539436,0.007,61512.0,61510.0,0.16233898]
[1719518539836,0.1,61517.0,61510.0,0.16233898]
[1719518540617,0.006,61512.0,61511.0,0.16233898]
[1719518541011,0.006,61512.0,61511.0,0.29758755]
[1719518541230,0.013,61512.0,61511.0,0.13524857]
[1719518541438,0.013,61512.0,61510.0,0.002]
[1719518541439,0.242,61512.0,61510.0,0.001]
[1719518541641,0.1242,61511.0,61501.0,0.1742]
[1719518541838,0.236,61506.0,61502.0,0.29760494]
[1719518542050,0.1,61505.0,61494.0,0.096]
[1719518542196,0.1,61505.0,61496.0,0.29761741]
[1719518542402,0.236,61503.0,61496.0,0.16233898]
[1719518542784,0.274257,61502.0,61496.0,0.16233898]
[1719518543364,0.1,61502.0,61496.0,0.16233898]
[1719518543886,0.236,61508.0,61496.0,0.16733898]
[1719518543887,0.001,61503.0,61496.0,0.16733898]
[1719518544300,0.1,61507.0,61496.0,0.16233898]
[1719518544612,0.1,61507.0,61500.0,0.08130346]
[1719518544816,0.1,61507.0,61501.0,0.16233898]
[1719518544817,0.002,61502.0,61501.0,0.16233898]
[1719518545221,0.001,61502.0,61501.0,0.16233898]
[1719518546047,0.1,61507.0,61501.0,0.16233898]
[1719518546885,0.001,61503.0,61501.0,0.16233898]
[1719518547038,0.1,61507.0,61501.0,0.16233898]
[1719518547245,0.101,61507.0,61495.0,0.474]
[1719518547441,0.236,61503.0,61496.0,0.16233898]
[1719518547688,0.1,61502.0,61495.0,0.474]
[1719518547888,0.236,61497.0,61495.0,0.474]
[1719518548088,0.1,61496.0,61493.0,0.0747]
[1719518548311,0.1,61496.0,61488.0,0.0998]
[1719518548312,0.1236,61496.0,61488.0,0.0998]
[1719518548518,0.1,61496.0,61489.0,0.16233898]
[1719518548989,0.197501,61495.0,61489.0,0.16233898]
[1719518549186,0.1,61494.0,61489.0,0.16233898]
[1719518550200,0.1,61494.0,61489.0,0.16433898]
[1719518550440,0.1,61501.0,61489.0,0.16433898]
[1719518550966,0.236,61490.0,61489.0,0.002]
[1719518551167,0.236,61490.0,61489.0,0.005]
[1719518551371,0.336,61490.0,61489.0,0.003]
[1719518551511,0.88078,61490.0,61489.0,0.003]
[1719518551711,0.336,61490.0,61489.0,0.004]
[1719518551960,0.476109,61490.0,61489.0,0.004]
[1719518552153,0.336,61490.0,61489.0,0.003]
[1719518552558,0.51521,61490.0,61484.0,0.073]
[1719518552874,0.1,61489.0,61484.0,0.073]
[1719518553026,0.233861,61489.0,61484.0,0.073]
[1719518553245,0.233861,61489.0,61485.0,0.16233898]
[1719518553438,0.1,61489.0,61485.0,0.16233898]
[1719518553836,0.236,61500.0,61485.0,0.16233898]
[1719518554053,0.1,61499.0,61485.0,0.16233898]
[1719518554325,0.011,61489.0,61485.0,0.16233898]
[1719518554440,0.005,61489.0,61485.0,0.16233898]
[1719518554861,0.008,61489.0,61485.0,0.16233898]
[1719518555062,0.005,61489.0,61485.0,0.16233898]
[1719518555441,0.001,61489.0,61485.0,0.16233898]
[1719518555900,0.001,61489.0,61485.0,0.16333898]
[1719518556415,0.001,61489.0,61485.0,0.16233898]
[1719518556817,0.001,61489.0,61487.0,0.02]
[1719518557016,0.001,61489.0,61488.0,0.33789134]
[1719518557224,0.001,61489.0,61488.0,0.33463898]
[1719518557752,0.1,61512.0,61494.0,0.5]
[1719518557912,0.48782074,61505.0,61495.0,0.16233898]
[1719518558134,0.1,61504.0,61495.0,0.16233898]
[1719518558349,0.1,61512.0,61495.0,0.16233898]
[1719518558940,1.786777,61511.0,61495.0,0.16233898]
[1719518559146,1.786777,61511.0,61488.0,0.1773]
[1719518559147,0.2961,61497.0,61488.0,0.1773]
[1719518559350,0.2961,61497.0,61489.0,0.16233898]
[1719518559499,0.1,61496.0,61489.0,0.16233898]
[1719518559980,0.1,61496.0,61495.0,0.001]
[1719518560529,0.1,61496.0,61489.0,0.16233898]
[1719518561307,0.101,61496.0,61495.0,0.005]
[1719518561508,0.1,61496.0,61495.0,0.16233898]
[1719518561876,0.102,61496.0,61495.0,0.16233898]
[1719518562094,0.101,61496.0,61495.0,0.16233898]
[1719518562587,0.1,61496.0,61495.0,0.16233898]
[1719518562788,0.001,61496.0,61495.0,0.16733898]
[1719518563551,0.001,61496.0,61495.0,0.17233898]
[1719518563757,0.002,61496.0,61495.0,0.17233898]
[1719518569863,0.01089778,61503.0,61495.0,0.01]
[1719518570068,0.2961,61496.0,61495.0,0.01]
[1719518570538,0.3961,61496.0,61495.0,0.01]
[1719518571283,0.3961,61496.0,61495.0,0.005]
[1719518571935,0.3961,61496.0,61495.0,0.01410222]
[1719518572247,0.507746,61496.0,61495.0,0.005]
[1719518572448,0.508746,61496.0,61495.0,0.02010222]
[1719518573609,0.212646,61496.0,61495.0,0.02010222]
[1719518573831,0.101,61496.0,61495.0,0.02010222]
[1719518575342,0.001,61496.0,61495.0,0.02010222]
[1719518576122,0.001,61496.0,61495.0,0.3540412]
[1719518577965,0.001,61496.0,61495.0,0.3640412]
[1719518578512,0.001,61496.0,61495.0,0.3540412]
[1719518579759,0.001,61496.0,61495.0,0.3640412]
[1719518581601,0.001,61496.0,61495.0,0.3540412]
[1719518581808,0.001,61496.0,61495.0,0.3640412]
[1719518582243,0.001,61496.0,61495.0,0.5640412]
[1719518582602,0.2,61526.0,61514.0,0.00910222]
[1719518582603,0.1451758,61515.0,61514.0,0.00910222]
[1719518582896,0.48782074,61519.0,61518.0,0.00910222]
[1719518583014,0.1451758,61520.0,61519.0,0.11070222]
[1719518583232,0.1451758,61527.0,61526.0,0.00910222]
[1719518583451,0.1451758,61528.0,61527.0,0.00910222]
[1719518583655,0.14519364,61531.0,61527.0,0.00910222]
[1719518583880,0.14519364,61531.0,61525.0,0.00910222]
[1719518584286,0.14519364,61531.0,61527.0,0.00910222]
[1719518584496,0.00841,61533.0,61519.0,0.26393898]
[1719518584497,0.15360364,61533.0,61528.0,0.00910222]
[1719518584696,0.15360364,61533.0,61531.0,0.00910222]
[1719518584893,0.00841,61533.0,61532.0,0.00910222]
[1719518585099,0.10841,61533.0,61532.0,0.00910222]
[1719518585850,0.10841,61533.0,61532.0,0.18530222]
[1719518585851,0.00841,61533.0,61532.0,0.18530222]
[1719518586048,0.11241,61533.0,61532.0,0.20383244]
[1719518586208,0.11241,61533.0,61532.0,0.36617142]
[1719518586449,0.10841,61533.0,61532.0,0.36617142]
[1719518586910,0.11741,61533.0,61532.0,0.36617142]
[1719518587102,0.01741,61533.0,61532.0,0.36617142]
[1719518587343,0.01241,61533.0,61532.0,0.36617142]
[1719518587514,0.01241,61533.0,61532.0,0.57917142]
[1719518587743,0.01241,61533.0,61532.0,0.60217142]
[1719518587971,0.01241,61533.0,61532.0,0.80217142]
[1719518588165,0.20841,61568.0,61554.0,0.00910222]
[1719518588166,0.1207688,61555.0,61554.0,0.00910222]
[1719518588368,0.48782074,61555.0,61554.0,0.02763244]
[1719518588485,0.00841,61565.0,61551.0,0.00910222]
[1719518588691,0.00841,61565.0,61543.0,0.474]
[1719518588692,0.1207688,61564.0,61552.0,0.1714412]
[1719518588892,0.1291788,61565.0,61552.0,0.1714412]
[1719518589091,0.00841,61565.0,61552.0,0.16233898]
[1719518589299,0.008,61555.0,61554.0,0.001]
[1719518589709,0.00841,61565.0,61555.0,0.00910222]
[1719518590113,0.00841,61565.0,61557.0,0.00910222]
[1719518590114,0.01341,61558.0,61557.0,0.00910222]
[1719518590340,0.01341,61558.0,61557.0,0.1714412]
[1719518590790,0.01341,61558.0,61557.0,0.1795412]
[1719518590975,0.01941,61558.0,61557.0,0.1795412]
[1719518591176,0.01341,61558.0,61557.0,0.1795412]
[1719518591559,0.00841,61558.0,61557.0,0.1815412]
[1719518591971,0.01041,61558.0,61557.0,0.1815412]
[1719518592371,0.00841,61558.0,61557.0,0.17243898]
[1719518592572,0.00841,61558.0,61557.0,0.0101]
[1719518592733,0.00841,61558.0,61557.0,0.0131]
[1719518592937,0.00841,61558.0,61557.0,0.1845412]
[1719518593142,0.00841,61558.0,61557.0,0.20299532]
[1719518593623,0.00841,61558.0,61557.0,0.38849532]
[1719518593790,0.00841,61558.0,61557.0,0.38649532]
[1719518594193,0.01041,61558.0,61557.0,0.38649532]
[1719518594399,0.00841,61558.0,61557.0,0.39649532]
[1719518594599,0.00841,61558.0,61557.0,0.39349532]
[1719518594800,0.00841,61558.0,61557.0,0.39549532]
[1719518595005,0.00941,61558.0,61557.0,0.39549532]
[1719518595405,0.00941,61558.0,61557.0,0.41849532]
[1719518595632,0.00841,61558.0,61557.0,0.41649532]
[1719518595829,0.00941,61558.0,61557.0,0.43049532]
[1719518596043,0.00941,61558.0,61557.0,0.42049532]
[1719518596312,0.00941,61558.0,61557.0,0.3790412]
[1719518596437,0.00841,61558.0,61557.0,0.3650412]
[1719518596621,0.00941,61558.0,61557.0,0.3790412]
[1719518597023,0.00941,61558.0,61557.0,0.3930412]
[1719518597024,0.01041,61558.0,61557.0,0.3930412]
[1719518597409,0.01041,61558.0,61557.0,0.3098412]
[1719518597931,0.00841,61558.0,61557.0,0.2818412]
[1719518598132,0.00941,61558.0,61557.0,0.2928412]
[1719518598345,0.01041,61558.0,61557.0,0.3068412]
[1719518598748,0.00941,61558.0,61557.0,0.2928412]
[1719518599757,0.00941,61558.0,61557.0,0.3038412]
[1719518599758,0.01041,61558.0,61557.0,0.3038412]
[1719518599924,0.01041,61558.0,61557.0,0.3138412]
[1719518600112,0.01041,61558.0,61557.0,0.3038412]
[1719518602956,0.01041,61558.0,61557.0,0.3138412]
[1719518603155,0.01041,61558.0,61557.0,0.39514466]
[1719518603357,0.01041,61558.0,61557.0,0.47064466]
[1719518603530,0.01041,61558.0,61557.0,0.3893412]
[1719518603733,0.1,61585.0,61560.0,0.01]
[1719518603734,0.09690624,61585.0,61560.0,0.01]
[1719518603958,0.48782074,61576.0,61573.0,0.00910222]
[1719518604153,0.09690624,61585.0,61573.0,0.00910222]
[1719518604154,1.005996,61584.0,61573.0,0.00910222]
[1719518604355,0.09690624,61585.0,61575.0,0.00910222]
[1719518604581,0.09690624,61585.0,61564.0,0.5]
[1719518604582,0.09690624,61585.0,61576.0,0.00910222]
[1719518604781,0.891678,61584.0,61571.0,0.00910222]
[1719518604980,0.13940842,61583.0,61571.0,0.00910222]
[1719518605180,0.13940842,61583.0,61570.0,0.00910222]
[1719518605385,1.750361,61582.0,61573.0,0.001]
[1719518605760,1.157702,61582.0,61573.0,0.001]
[1719518605963,1.489468,61581.0,61573.0,0.001]
[1719518606160,0.1,61581.0,61573.0,0.001]
[1719518606362,0.11,61581.0,61573.0,0.001]
[1719518606583,0.990068,61580.0,61573.0,0.001]
[1719518606803,0.990068,61580.0,61570.0,0.16233898]
[1719518607009,0.1,61579.0,61573.0,0.001]
[1719518607613,0.694388,61578.0,61573.0,0.001]
[1719518607816,0.694388,61578.0,61573.0,0.002]
[1719518608054,0.1,61577.0,61573.0,0.002]
[1719518608260,0.1,61577.0,61573.0,0.001]
[1719518608713,0.25557276,61577.0,61573.0,0.001]
[1719518608881,0.6463,61574.0,61573.0,0.001]
[1719518609098,0.80863898,61574.0,61573.0,0.001]
[1719518609334,0.90863898,61574.0,61573.0,0.001]
[1719518609918,0.90863898,61574.0,61557.0,0.0081]
[1719518609919,0.01,61560.0,61557.0,0.0081]
[1719518610120,0.2463,61558.0,61557.0,0.0081]
[1719518610269,0.27093,61558.0,61557.0,0.0081]
[1719518610471,0.37093,61558.0,61557.0,0.0081]
[1719518610913,1.89457,61558.0,61557.0,0.0081]
[1719518611426,2.642138,61558.0,61557.0,0.0081]
[1719518611629,2.656138,61558.0,61557.0,0.0091]
[1719518611806,2.642138,61558.0,61557.0,0.0081]
[1719518611975,2.768388,61558.0,61557.0,0.0081]
[1719518612174,2.758388,61558.0,61557.0,0.0081]
[1719518612385,2.89866,61558.0,61557.0,0.0081]
[1719518612600,2.67221,61558.0,61557.0,0.0081]
[1719518612883,0.636017,61558.0,61557.0,0.0081]
[1719518613162,0.660017,61558.0,61557.0,0.0081]
[1719518613360,0.674017,61558.0,61557.0,0.0091]
[1719518613583,0.646017,61558.0,61557.0,0.0081]
[1719518613936,0.660017,61558.0,61557.0,0.0091]
[1719518614947,0.674017,61558.0,61557.0,0.0091]
[1719518616380,0.7614187,61558.0,61557.0,0.0091]
[1719518616792,0.9614187,61558.0,61557.0,0.0091]
[1719518617315,0.9614187,61558.0,61557.0,0.00902799]
[1719518617316,0.674017,61558.0,61557.0,0.00902799]
[1719518620785,0.664017,61558.0,61557.0,0.00902799]
[1719518623653,0.664017,61558.0,61557.0,0.001]
[1719518626379,0.636017,61558.0,61551.0,0.00910222]
[1719518626570,0.1,61557.0,61549.0,0.0773]
[1719518626776,0.782231,61557.0,61549.0,0.0773]
[1719518627175,0.474282,61556.0,61549.0,0.0773]
[1719518627377,0.1,61557.0,61554.0,0.00910222]
[1719518627378,0.1,61555.0,61554.0,0.00910222]
[1719518627575,0.1,61555.0,61554.0,0.2480412]
[1719518627781,0.012,61558.0,61557.0,0.00910222]
[1719518628016,0.00084,61558.0,61557.0,0.00910222]
[1719518628452,0.01284,61558.0,61557.0,0.2733212]
[1719518628972,0.00084,61558.0,61557.0,0.2733212]
[1719518629381,0.00084,61558.0,61557.0,0.2743212]
[1719518630298,0.00184,61558.0,61557.0,0.2743212]
[1719518630946,0.00184,61558.0,61557.0,0.10288]
[1719518631270,0.00184,61558.0,61557.0,0.00898]
[1719518636187,0.00184,61558.0,61557.0,0.01808222]
[1719518637313,0.00184,61558.0,61557.0,0.1804212]
[1719518637491,0.00184,61558.0,61557.0,0.19878824]
[1719518638305,0.00184,61558.0,61557.0,0.1804212]
[1719518639416,0.00184,61558.0,61557.0,0.00898]
[1719518640862,0.00184,61558.0,61557.0,0.01808222]
[1719518641062,0.00184,61558.0,61557.0,0.1804212]
[1719518641262,0.00184,61558.0,61557.0,0.3417212]
[1719518641478,0.00184,61558.0,61557.0,0.33261898]
[1719518642177,0.00184,61558.0,61557.0,0.00898]
[1719518642345,0.03413496,61558.0,61557.0,0.00898]
[1719518642545,0.00184,61558.0,61557.0,0.00898]
[1719518642746,0.75719,61558.0,61557.0,0.00898]
[1719518643079,0.249688,61558.0,61557.0,0.00898]
[1719518643290,0.10184,61558.0,61557.0,0.00898]
[1719518643493,0.312188,61558.0,61557.0,0.00898]
[1719518647421,0.38439863,61558.0,61557.0,0.00898]
[1719518648255,0.55791689,61558.0,61557.0,0.00898]
[1719518648448,0.39439863,61558.0,61557.0,0.00898]
[1719518649270,0.39439863,61558.0,61534.0,0.0872]
[1719518649271,0.01,61547.0,61534.0,0.0872]
[1719518649477,0.01,61547.0,61530.0,0.0872]
[1719518649478,0.2364,61535.0,61530.0,0.0872]
[1719518649707,0.2364,61535.0,61525.0,0.07422822]
[1719518649708,0.14533222,61533.0,61525.0,0.223126]
[1719518649903,3.87515,61546.0,61525.0,0.158]
[1719518649904,0.2364,61530.0,61525.0,0.158]
[1719518650102,0.1,61529.0,61525.0,0.158]
[1719518650535,0.343792,61529.0,61525.0,0.158]
[1719518651095,0.169492,61528.0,61525.0,0.158]
[1719518651494,0.1,61527.0,61525.0,0.158]
[1719518651914,0.1,61527.0,61526.0,0.00910222]
[1719518652109,0.1081,61527.0,61525.0,0.158]
[1719518652494,0.0081,61527.0,61525.0,0.158]
[1719518652698,0.1,61526.0,61525.0,0.163]
[1719518652900,0.0081,61527.0,61525.0,0.163]
[1719518653100,0.0081,61527.0,61526.0,0.00910222]
[1719518654322,0.0091,61527.0,61526.0,0.01610222]
[1719518654726,0.0101,61527.0,61526.0,0.01610222]
[1719518655131,0.0091,61527.0,61526.0,0.01610222]
[1719518655526,0.0101,61527.0,61526.0,0.013]
[1719518655722,0.0101,61527.0,61526.0,0.1844412]
[1719518656170,0.14525623,61538.0,61532.0,0.00910222]
[1719518656375,0.33289655,61544.0,61536.0,0.00910222]
[1719518656376,0.07272035,61544.0,61536.0,0.00910222]
[1719518656548,0.07272035,61544.0,61534.0,0.00910222]
[1719518656785,0.07272035,61544.0,61531.0,0.00910222]
[1719518656987,2.20680404,61543.0,61531.0,0.00910222]
[1719518657186,0.2364,61539.0,61531.0,0.00910222]
[1719518657438,0.001,61538.0,61535.0,0.00910222]
[1719518657761,0.2464,61550.0,61538.0,0.00910222]
[1719518657966,0.003,61544.0,61538.0,0.00910222]
[1719518658389,0.547394,61549.0,61540.0,0.00910222]
[1719518658597,0.1,61549.0,61540.0,0.00910222]
[1719518658766,0.1,61549.0,61542.0,0.00910222]
[1719518658977,0.148524,61549.0,61544.0,0.00910222]
[1719518659476,0.148524,61549.0,61545.0,0.00910222]
[1719518659704,0.148524,61549.0,61544.0,0.00910222]
[1719518659705,0.156524,61549.0,61544.0,0.00910222]
[1719518659904,0.008,61549.0,61546.0,0.0729]
[1719518660287,0.008,61549.0,61546.0,0.08200222]
[1719518660469,0.008,61549.0,61548.0,0.00910222]
[1719518660921,0.011,61549.0,61548.0,0.00910222]
[1719518661425,0.008,61549.0,61548.0,0.00910222]
[1719518661596,0.002,61549.0,61548.0,0.00910222]
[1719518661854,0.1,61554.0,61552.0,0.00910222]
[1719518662061,0.00084,61558.0,61552.0,0.00910222]
[1719518662688,0.253609,61557.0,61550.0,0.00910222]
[1719518662890,0.1,61556.0,61549.0,0.00910222]
[1719518663096,0.1,61556.0,61549.0,0.1714412]
[1719518663508,0.1103,61555.0,61549.0,0.1714412]
[1719518663716,0.1,61554.0,61549.0,0.1714412]
[1719518664780,0.102,61556.0,61549.0,0.1714412]
[1719518664952,0.1,61556.0,61550.0,0.00910222]
[1719518665162,0.1,61556.0,61552.0,0.00910222]
[1719518666099,0.128572,61555.0,61552.0,0.00910222]
[1719518666298,0.1,61554.0,61552.0,0.00910222]
[1719518666990,0.1,61554.0,61550.0,0.00910222]
[1719518667206,0.1,61554.0,61552.0,0.00910222]
[1719518667441,0.001,61556.0,61553.0,0.00910222]
[1719518667645,0.001,61556.0,61549.0,0.16233898]
[1719518667646,0.001,61556.0,61552.0,0.01010222]
[1719518667846,0.001,61556.0,61553.0,0.00910222]
[1719518668200,0.10084,61558.0,61553.0,0.00910222]
[1719518668733,0.1758,61557.0,61553.0,0.00910222]
[1719518668862,0.1,61556.0,61553.0,0.00910222]
[1719518669062,0.1,61556.0,61552.0,0.00910222]
[1719518669945,0.002,61556.0,61552.0,0.00910222]
[1719518670257,0.003,61556.0,61552.0,0.00910222]
[1719518670616,0.003,61556.0,61549.0,0.16233898]
[1719518670617,0.003,61556.0,61555.0,0.09920222]
[1719518671227,0.003,61556.0,61555.0,0.8312412]
[1719518671425,0.00084,61558.0,61557.0,0.01910222]
[1719518671745,0.2364,61582.0,61573.0,0.00910222]
[1719518671746,0.14529963,61575.0,61573.0,0.00910222]
[1719518671960,0.14529963,61576.0,61573.0,0.00910222]
[1719518672188,0.14529963,61575.0,61571.0,0.00910222]
[1719518672359,0.14529963,61576.0,61571.0,0.00910222]
[1719518672592,0.1,61574.0,61571.0,0.00910222]
[1719518672761,0.39986209,61582.0,61570.0,0.00910222]
[1719518672762,0.1,61575.0,61570.0,0.00910222]
[1719518672972,0.24529963,61576.0,61570.0,0.00910222]
[1719518673165,0.14529963,61575.0,61570.0,0.00910222]
[1719518673367,0.1,61574.0,61573.0,0.002]
[1719518673897,0.1,61574.0,61570.0,0.00910222]
[1719518673898,0.1,61574.0,61571.0,0.001]
[1719518674104,0.1,61574.0,61570.0,0.01110222]
[1719518674493,0.002,61575.0,61570.0,0.01110222]
[1719518674634,0.1,61578.0,61570.0,0.01110222]
[1719518674841,0.01,61574.0,61573.0,0.001]
[1719518675250,0.28416022,61574.0,61573.0,0.001]
[1719518675456,0.14776022,61574.0,61573.0,0.001]
[1719518675653,0.38416022,61574.0,61573.0,0.001]
[1719518675878,2.98305878,61574.0,61573.0,0.001]
[1719518676278,4.09403576,61574.0,61573.0,0.001]
[1719518676483,4.10403576,61574.0,61573.0,0.001]
[1719518676684,0.01,61571.0,61570.0,0.001]
[1719518676914,0.01,61567.0,61556.0,0.00910222]
[1719518677117,0.2364,61564.0,61556.0,0.00910222]
[1719518677325,0.1,61563.0,61556.0,0.00910222]
[1719518677531,0.768736,61563.0,61556.0,0.00910222]
[1719518678100,0.370801,61562.0,61556.0,0.00910222]
[1719518678306,0.1,61561.0,61556.0,0.00910222]
[1719518678998,0.1,61561.0,61551.0,0.1573]
[1719518678999,0.0643819,61560.0,61553.0,0.00910222]
[1719518679214,0.0643819,61560.0,61556.0,0.001]
[1719518679215,0.2364,61559.0,61556.0,0.001]
[1719518679426,0.1,61558.0,61556.0,0.001]
[1719518679842,0.1,61558.0,61553.0,0.16233898]